[Event "118th SUI-ch 2018"]
[Site "Lenzerheide"]
[Date "2018.07.19"]
[Round "8"]
[White "Studer, Noel"]
[Black "Kurmann, Oliver"]
[Result "1-0"]
[ECO "E17"]
[WhiteElo "2484"]
[BlackElo "2451"]
[Annotator "ChessBase"]
[PlyCount "49"]
[EventDate "2018.07.12"]
[EventType "tourn"]
[EventCountry "SUI"]
[SourceTitle "playchess.com"]
[Source "ChessBase"]
[SourceQuality "1"]
[TimeControl "40/5400+30:1800+30"]

1. d4 {[%emt 0:00:00]} Nf6 {[%emt 0:00:00]} 2. c4 {[%emt 0:00:00]} e6 {[%emt 0:00:00]} 3. Nf3 {[%emt 0:00:00]} b6 {[%emt 0:00:00]} 4. g3 {[%emt 0:00:00]} Bb7 {[%emt 0:00:00]} 5. Bg2 {[%emt 0:00:00]} Be7 {[%emt 0:00:11]} 6. O-O {[%emt 0:00:00]} O-O {[%emt 0:00:10]} 7. Re1 {[%emt 0:00:03]} d5 {[%emt 0:00:39]} 8. cxd5 {[%emt 0:00:04]} exd5 {[%emt 0:00:11]} 9. Nc3 {[%emt 0:00:03]} Nbd7 {[%emt 0:00:38]} 10. Bf4 {[%emt 0:00:15]} c5 {[%emt 0:00:14]} 11. Rc1 {[%emt 0:00:04]} Ne4 {[%emt 0:00:55]} 12. Nxe4 {[%emt 0:00:02]} dxe4 {[%emt 0:00:16]} 13. Nd2 {[%emt 0:00:05]} f5 {[%emt 0:01:22]} 14. b4 {[%emt 0:00:39]} cxd4 {[%emt 1:03:48]} 15. Qb3+ {[%emt 0:00:19]} Rf7 {[%emt 0:00:11]} 16. Rc7 {[%emt 0:00:24]} g5 {[%emt 0:00:32]} 17. Rxb7 {[%emt 0:13:26]} gxf4 {[%emt 0:00:02]} 18. Nxe4 {[%emt 0:00:19]} fxe4 {[%emt 0:02:23]} 19. Bxe4 {[%emt 0:00:06]} Rb8 {[%emt 0:04:15]} 20. Rxb8 {[%emt 0:06:55]} Qxb8 {[%emt 0:00:02]} 21. Bd5 {[%emt 0:00:06]} Ne5 {[%emt 0:05:42]} 22. Rd1 {[%emt 0:26:36]} Bf6 {[%emt 0:08:41]} 23. Rxd4 {[%emt 0:04:04]} Nf3+ {[%emt 0:01:04]} 24. Qxf3 {[%emt 0:00:14]} Bxd4 {[%emt 0:00:02]} 25. Bxf7+ {[%emt 0:00:05]} 1-0

[Event "118th SUI-ch 2018"]
[Site "Lenzerheide"]
[Date "2018.07.19"]
[Round "8"]
[White "Gallagher, Joseph G"]
[Black "Ekstroem, Roland"]
[Result "0-1"]
[ECO "B27"]
[WhiteElo "2434"]
[BlackElo "2381"]
[Annotator "NA"]
[PlyCount "86"]
[EventDate "2018.07.12"]
[EventType "tourn"]
[EventCountry "SUI"]
[SourceTitle "playchess.com"]
[Source "ChessBase"]
[SourceQuality "1"]
[TimeControl "40/5400+30:1800+30"]

1. e4 {[%emt 0:00:00]} c5 {[%emt 0:00:00]} 2. Nf3 {[%emt 0:00:00]} g6 {[%emt 0:00:00]} 3. d4 {[%emt 0:00:52]} cxd4 {[%emt 0:00:04]} 4. Qxd4 {[%emt 0:01:06]} Nf6 {[%emt 0:00:09]} 5. e5 {[%emt 0:00:08]} Nc6 {[%emt 0:00:12]} 6. Qa4 {[%emt 0:00:03]} Nd5 {[%emt 0:00:08]} 7. Qe4 {[%emt 0:00:03]} Nb6 {[%emt 0:00:34] B27: Sicilian: 2 Nf3, unusual Black 2nd moves} 8. Nc3 {[%emt 0:00:48]} d5 {[%emt 0:00:21]} (8... Bg7 9. Bf4 d5 10. exd6 Bf5 11. Qe2 O-O 12. O-O-O exd6 13. Rxd6 Qc8 14. Qb5 Re8 15. h4 {½-½ (30) Saric,I (2666)-Hou,Y (2673) Wijk aan Zee 2015 CBM 165 [CB]}) 9. exd6 {[%emt 0:00:58]} Bf5 {[%emt 0:00:35]} 10. Qh4 {[%emt 0:05:58]} Qxd6 {[%emt 0:05:01]} 11. Nb5 {[%emt 0:00:09]} Qb4+ {[%emt 0:24:47]} 12. c3 {[%emt 0:27:27]} Qxh4 {[%emt 0:01:43]} 13. Nxh4 {[%emt 0:00:02]} O-O-O {[%emt 0:00:54]} 14. Nxf5 {[%emt 0:00:04]} gxf5 {[%emt 0:00:10]} 15. Be3 $146 {[%emt 0:05:28]} ({Predecessor:} 15. Be2) 15... Nd5 {[%emt 0:15:09]} 16. Bxa7 {[%emt 0:15:00]} b6 $1 {[%emt 0:00:57]} 17. c4 {[%emt 0:06:37]} Ndb4 {[%emt 0:02:33]} 18. Bxb6 {[%emt 0:01:37]} Nc2+ {[%emt 0:00:35]} 19. Ke2 {[%emt 0:00:05]} Nxa1 {[%emt 0:00:16]} 20. g3 {[%emt 0:12:23]} Bh6 {[%emt 0:10:25]} 21. Bxd8 {[%emt 0:04:41]} Rxd8 {[%emt 0:00:13]} 22. f4 {[%emt 0:02:36]} Nc2 {[%emt 0:01:25]} 23. Bg2 {[%emt 0:00:15]} N6d4+ {[%emt 0:01:06]} 24. Nxd4 {[%emt 0:02:44]} Nxd4+ {[%emt 0:00:17]} 25. Kf2 {[%emt 0:00:37]} Nc2 {[%emt 0:01:53]} 26. Ke2 {[%emt 0:01:14]} Bg7 {[%emt 0:01:11]} 27. Rb1 {[%emt 0:06:51]} Kc7 {[%emt 0:06:37]} 28. a4 {[%emt 0:03:40]} Nd4+ {[%emt 0:03:10]} 29. Ke1 {[%emt 0:00:27]} Nb3 $19 {[%emt 0:01:22]} 30. Rd1 {[%emt 0:00:55]} Bxb2 {[%emt 0:01:23]} 31. Rxd8 {[%emt 0:02:08]} Kxd8 {[%emt 0:00:05]} 32. Kd1 {[%emt 0:00:24]} Na5 {[%emt 0:02:44]} 33. Kc2 {[%emt 0:00:35]} Nxc4 {[%emt 0:03:22]} 34. Kb3 {[%emt 0:00:21]} Ne3 {[%emt 0:00:15]} 35. Kxb2 {[%emt 0:00:39]} Nxg2 {[%emt 0:00:06]} 36. Kc3 {[%emt 0:00:05]} Ne3 {[%emt 0:01:45]} 37. Kd4 {[%emt 0:00:18]} Nf1 {[%emt 0:01:45]} 38. Ke5 {[%emt 0:00:37]} Nxh2 {[%emt 0:02:16]} 39. Kxf5 {[%emt 0:00:05]} h6 {[%emt 0:01:28]} 40. a5 {[%emt 0:01:18]} Kc7 {[%emt 0:01:14]} 41. g4 {[%emt 0:03:25]} e6+ {[%emt 0:02:16]} 42. Kf6 {[%emt 0:00:14]} Nxg4+ {[%emt 0:00:20]} 43. Kxf7 {[%emt 0:00:03]} h5 {[%emt 0:00:19]} 0-1